fUSD/lending_fUSD_20251120
["ID","MTS","AMOUNT","RATE_DAILY","PERIOD"]
[394480985,1763618454254,151.0,0.00042048,120]
[394480986,1763618454323,290.986897,0.00042048,120]
[394480988,1763618454540,151.0,0.00042048,120]
[394480989,1763618454639,290.986897,0.00042048,120]
[394480990,1763618454939,290.986897,0.00042048,120]
[394480991,1763618454986,151.0,0.00042048,120]
[394480993,1763618455237,290.986897,0.00042048,120]
[394480995,1763618455296,151.0,0.00042048,120]
[394480996,1763618455371,320.14117887,0.00042048,120]
[394480998,1763618455530,290.986897,0.00042048,120]
[394480999,1763618455645,151.0,0.00042048,120]
[394481001,1763618455830,290.986897,0.00042048,120]
[394481002,1763618455997,151.0,0.00042048,120]
[394481004,1763618456128,290.986897,0.00042048,120]
[394481006,1763618456282,151.0,0.00042048,120]
[394481007,1763618456416,290.986897,0.00042048,120]
[394481009,1763618456678,151.0,0.00042048,120]
[394481010,1763618456723,290.986897,0.00042048,120]
[394481012,1763618456994,159.17172,0.00042048,120]
[394481014,1763618457062,290.986897,0.00042048,120]
[394481016,1763618457350,290.986897,0.00042048,120]
[394481018,1763618457579,295.03054648,0.00042048,120]
[394481019,1763618457646,290.986897,0.00042048,120]
[394481021,1763618457950,290.986897,0.00042048,120]
[394481023,1763618458232,290.986897,0.00042048,120]
[394481024,1763618458517,290.986897,0.00042048,120]
[394481025,1763618458825,290.986901,0.00042048,120]
[394481026,1763618459318,151.0,0.00042048,120]
[394481027,1763618459430,442.84918655,0.00042048,120]
[394481028,1763618459614,151.0,0.00042048,120]
[394481029,1763618459912,259.233808,0.00042048,120]
[394481030,1763618460422,370.38131201,0.00042048,120]
[394481031,1763618462153,247.97863591,0.00042048,120]
[394481032,1763618462223,200.0,0.00042048,30]
[394481033,1763618462392,465.61895561,0.00042048,120]
[394481035,1763618465715,151.0,0.00042048,90]
[394481036,1763618466030,151.0,0.00042048,90]
[394481037,1763618466326,151.0,0.00042048,90]
[394481038,1763618466668,151.0,0.00042048,90]
[394481039,1763618466944,151.0,0.00042048,90]
[394481040,1763618467316,151.0,0.00042048,90]
[394481041,1763618467681,151.0,0.00042048,90]
[394481042,1763618468040,151.0,0.00042048,90]
[394481043,1763618468409,151.0,0.00042048,90]
[394481044,1763618468662,151.0,0.00042048,90]
[394481045,1763618469016,151.0,0.00042048,90]
[394481046,1763618469316,151.0,0.00042048,90]
[394481047,1763618469439,218.23210974,0.00042048,120]
[394481048,1763618469785,151.0,0.00042048,120]
[394481050,1763618470080,232.64213794,0.00042048,120]
[394481052,1763618470175,151.0,0.00042048,90]
[394481053,1763618470353,151.0,0.00042048,120]
[394481055,1763618470462,255.389336,0.00042048,90]
[394481057,1763618470543,414.104347,0.00042048,120]
[394481059,1763618470609,271.050202,0.00042048,120]
[394481061,1763618470663,151.0,0.00042048,120]
[394481064,1763618470901,414.104347,0.00042048,120]
[394481065,1763618470949,271.050202,0.00042048,120]
[394481066,1763618471026,151.0,0.00042048,120]
[394481069,1763618471217,414.104347,0.00042048,120]
[394481070,1763618471269,271.050202,0.00042048,120]
[394481075,1763618471592,271.050202,0.00042048,120]
[394481076,1763618471639,414.104347,0.00042048,120]
[394481079,1763618471847,271.050202,0.00042048,120]
[394481080,1763618471912,414.104347,0.00042048,120]
[394481083,1763618472137,271.050202,0.00042048,120]
[394481085,1763618472261,414.104347,0.00042048,120]
[394481087,1763618472384,454.01771617,0.00042048,120]
[394481089,1763618472498,271.050202,0.00042048,120]
[394481091,1763618472558,414.104347,0.00042048,120]
[394481094,1763618472859,414.104347,0.00042048,120]
[394481096,1763618472938,271.050202,0.00042048,120]
[394481098,1763618473158,414.104347,0.00042048,120]
[394481100,1763618473229,445.86865313,0.00042048,120]
[394481101,1763618473296,271.050202,0.00042048,120]
[394481104,1763618473460,414.104347,0.00042048,120]
[394481107,1763618473771,414.104347,0.00042048,120]
[394481108,1763618473881,271.050202,0.00042048,120]
[394481110,1763618474059,414.104347,0.00042048,120]
[394481111,1763618474160,222.89102484,0.00042048,120]
[394481113,1763618474216,271.050202,0.00042048,120]
[394481114,1763618474366,414.104347,0.00042048,120]
[394481117,1763618474691,414.104347,0.00042048,120]
[394481118,1763618474787,271.050202,0.00042048,120]
[394481120,1763618474995,414.104347,0.00042048,120]
[394481121,1763618475103,271.050202,0.00042048,120]
[394481123,1763618475183,296.73780751,0.00042048,120]
[394481124,1763618475342,414.104347,0.00042048,120]
[394481126,1763618475578,271.050202,0.00042048,120]
[394481128,1763618475718,271.050202,0.00042048,120]
[394481129,1763618475770,414.104347,0.00042048,120]
[394481131,1763618476023,414.104347,0.00042048,120]
[394481132,1763618476312,414.104347,0.00042048,120]
[394481133,1763618476371,271.050202,0.00042048,120]
[394481135,1763618476594,414.104353,0.00042048,120]
[394481136,1763618476650,271.050202,0.00042048,120]
[394481138,1763618476910,271.050202,0.00042048,120]
[394481140,1763618477129,339.63050108,0.00042048,120]
[394481144,1763618477539,271.050202,0.00042048,120]
[394481146,1763618477854,271.050208,0.00042048,120]
[394481151,1763618478568,468.07032068,0.00042048,120]
[394481153,1763618478621,230.54895015,0.00042048,120]
[394481158,1763618480400,444.72831126,0.00042048,120]
[394481159,1763618480447,151.0,0.00042048,120]
[394481160,1763618480502,309.69886533,0.00042048,120]
[394481161,1763618480711,151.0,0.00042048,120]
[394481162,1763618481128,151.0,0.00042048,120]
[394481163,1763618481458,151.0,0.00042048,120]
[394481164,1763618481783,151.0,0.00042048,120]
[394481165,1763618482107,168.229142,0.00042048,120]
[394481166,1763618482426,463.25835547,0.00042048,120]
[394481167,1763618483895,151.0,0.00042048,120]
[394481169,1763618484199,151.0,0.00042048,120]
[394481171,1763618484491,444.07999231,0.00042048,120]
[394481173,1763618484558,151.0,0.00042048,120]
[394481175,1763618484865,151.0,0.00042048,120]
[394481176,1763618484986,416.58077024,0.00042048,120]
[394481180,1763618485547,439.35079593,0.00042048,120]
[394481181,1763618485848,400.11224617,0.00042048,120]
[394481182,1763618486351,500.0,0.00042048,120]
[394481183,1763618486607,152.89839784,0.00042048,120]
[394481184,1763618486657,201.172001,0.00042048,120]
[394481185,1763618486917,201.172001,0.00042048,120]
[394481187,1763618486970,151.0,0.00042048,120]
[394481189,1763618487254,201.172001,0.00042048,120]
[394481190,1763618487312,151.0,0.00042048,120]
[394481191,1763618487566,201.172001,0.00042048,120]
[394481192,1763618487631,151.0,0.00042048,120]
[394481193,1763618487723,461.77896358,0.00042048,120]
[394481194,1763618487937,201.172001,0.00042048,120]
[394481195,1763618488143,151.0,0.00042048,120]
[394481196,1763618488205,151.0,0.00042048,120]
[394481197,1763618488267,151.0,0.00042048,120]
[394481198,1763618488324,151.0,0.00042048,120]
[394481199,1763618488384,201.172001,0.00042048,120]
[394481200,1763618488437,151.0,0.00042048,120]
[394481201,1763618488611,201.172001,0.00042048,120]
[394481202,1763618488682,151.0,0.00042048,120]
[394481203,1763618488732,151.0,0.00042048,120]
[394481204,1763618488791,151.0,0.00042048,30]
[394481205,1763618488903,201.172001,0.00042048,120]
[394481206,1763618488961,151.0,0.00042048,120]
[394481207,1763618489012,227.7146,0.00042048,120]
[394481208,1763618489190,201.172001,0.00042048,120]
[394481209,1763618489242,151.0,0.00042048,30]
[394481210,1763618489300,151.0,0.00042048,120]
[394481211,1763618489478,201.172001,0.00042048,120]
[394481212,1763618489532,151.0,0.00042048,30]
[394481213,1763618489588,162.408581,0.00042048,120]
[394481214,1763618489636,223.834179,0.00042048,120]
[394481215,1763618489689,428.61407151,0.00042048,120]
[394481216,1763618489767,201.172001,0.00042048,120]
[394481217,1763618489851,151.0,0.00042048,30]
[394481218,1763618490060,201.172001,0.00042048,120]
[394481219,1763618490211,151.0,0.00042048,30]
[394481220,1763618490358,201.172001,0.00042048,120]
[394481222,1763618490425,151.0,0.00042048,30]
[394481223,1763618490472,194.89180479,0.00042048,120]
[394481225,1763618490657,201.172001,0.00042048,120]
[394481226,1763618490708,151.0,0.00042048,120]
[394481227,1763618490778,151.0,0.00042048,30]
[394481229,1763618490966,201.172001,0.00042048,120]
[394481230,1763618491013,151.0,0.00042048,120]
[394481231,1763618491063,280.51864361,0.00042048,120]
[394481233,1763618491111,151.0,0.00042048,30]
[394481234,1763618491283,201.172001,0.00042048,120]
[394481235,1763618491337,151.0,0.00042048,120]
[394481237,1763618491388,151.0,0.00042048,30]
[394481238,1763618491559,201.172001,0.00042048,120]
[394481240,1763618491610,269.781868,0.00042048,120]
[394481241,1763618491657,381.16238488,0.00042048,120]
[394481242,1763618491728,151.0,0.00042048,30]
[394481244,1763618491936,201.172001,0.00042048,120]
[394481245,1763618491989,151.0,0.00042048,30]
[394481247,1763618492096,206.22867061,0.00042048,120]
[394481248,1763618492145,151.0,0.00042048,120]
[394481249,1763618492198,201.172001,0.00042048,120]
[394481250,1763618492273,164.2875,0.00042048,30]
[394481252,1763618492399,151.0,0.00042048,120]
[394481254,1763618492580,201.172005,0.00042048,120]
[394481255,1763618492675,151.0,0.00042048,120]
[394481257,1763618492942,445.99815116,0.00042048,120]
[394481259,1763618492998,151.0,0.00042048,120]
[394481261,1763618493279,151.0,0.00042048,120]
[394481263,1763618493572,151.0,0.00042048,120]
[394481265,1763618493854,151.0,0.00042048,120]
[394481266,1763618493918,410.49471057,0.00042048,120]
[394481268,1763618494052,392.25534621,0.00042048,120]
[394481269,1763618494146,237.45746794,0.00042048,120]
[394481270,1763618494193,151.0,0.00042048,120]
[394481272,1763618494453,151.0,0.00042048,120]
[394481275,1763618494754,205.469178,0.00042048,120]
[394481276,1763618494812,151.0,0.00042048,120]
[394481278,1763618495128,151.0,0.00042048,120]
[394481280,1763618495456,277.160475,0.00042048,120]
[394481282,1763618495621,151.0,0.00042048,120]
[394481284,1763618495735,437.50407269,0.00042048,120]
[394481285,1763618495942,151.0,0.00042048,120]
[394481286,1763618496015,400.0,0.00042048,120]
[394481287,1763618496264,435.62448315,0.00042048,120]
[394481288,1763618496316,151.0,0.00042048,120]
[394481289,1763618496554,151.0,0.00042048,120]
[394481290,1763618496701,393.93718,0.00042048,120]
[394481291,1763618496834,417.84740824,0.00042048,120]
[394481292,1763618497065,393.93718,0.00042048,120]
[394481293,1763618497436,393.93718,0.00042048,120]
[394481294,1763618497629,258.94290271,0.00042048,120]
[394481295,1763618497734,393.93718,0.00042048,120]
[394481296,1763618498142,393.93718,0.00042048,120]
[394481297,1763618498564,393.93718,0.00042048,120]
[394481298,1763618498669,223.50846453,0.00042048,120]
[394481300,1763618498940,393.93718,0.00042048,120]
[394481301,1763618498991,429.62824658,0.00042048,120]
[394481303,1763618499235,393.93718,0.00042048,120]
[394481305,1763618499397,164.34317548,0.00042048,60]
[394481307,1763618499616,393.93718,0.00042048,120]
[394481309,1763618499975,393.93718,0.00042048,120]
[394481310,1763618500118,190.29406481,0.00042048,120]
[394481311,1763618500359,393.93718,0.00042048,120]
[394481312,1763618500563,490.05612122,0.00042048,120]
[394481313,1763618500659,393.93718,0.00042048,120]
[394481314,1763618500741,491.35815688,0.00042048,120]
[394481315,1763618500960,393.93718,0.00042048,120]
[394481316,1763618501062,403.91017713,0.00042048,120]
[394481317,1763618501358,393.93718,0.00042048,120]
[394481318,1763618501756,393.93718,0.00042048,120]
[394481319,1763618502132,393.93718,0.00042048,120]
[394481320,1763618502529,393.93718,0.00042048,120]
[394481322,1763618503223,393.93718,0.00042048,120]
[394481323,1763618503278,409.4548892,0.00042048,120]
[394481324,1763618503619,393.93718,0.00042048,120]
[394481325,1763618503981,393.937188,0.00042048,120]
[394481326,1763618504038,156.586052,0.00042048,120]
[394481327,1763618504214,425.8681458,0.00042048,120]
[394481328,1763618504371,156.586052,0.00042048,120]
[394481329,1763618504684,156.586052,0.00042048,120]
[394481330,1763618505017,156.586052,0.00042048,120]
[394481331,1763618505388,156.586052,0.00042048,120]
[394481332,1763618505684,156.586052,0.00042048,120]
[394481333,1763618505732,301.8757942,0.00042048,120]
[394481334,1763618506016,156.586052,0.00042048,120]
[394481335,1763618506271,313.1061739,0.00042048,120]
[394481336,1763618506474,156.586052,0.00042048,120]
[394481337,1763618506651,156.586052,0.00042048,120]
[394481338,1763618506706,382.05827762,0.00042048,120]
[394481339,1763618506988,156.586052,0.00042048,120]
[394481340,1763618507287,156.586052,0.00042048,120]
[394481341,1763618507390,235.94886465,0.00042048,120]
[394481342,1763618507454,418.14041035,0.00042048,120]
[394481344,1763618507590,156.586052,0.00042048,120]
[394481346,1763618507910,156.586052,0.00042048,120]
[394481347,1763618508275,156.586052,0.00042048,120]
[394481349,1763618508599,156.586052,0.00042048,120]
[394481351,1763618508973,156.586052,0.00042048,120]
[394481353,1763618509248,163.193634,0.00042048,120]
[394481354,1763618509318,156.586052,0.00042048,120]
[394481357,1763618509675,500.0,0.00042048,120]
[394481358,1763618509722,156.586052,0.00042048,120]
[394481359,1763618509811,151.0,0.00042048,120]
[394481360,1763618509862,163.193634,0.00042048,120]
[394481362,1763618509923,205.7240844,0.00042048,120]
[394481363,1763618509971,351.65707039,0.00042048,120]
[394481364,1763618510041,156.586052,0.00042048,120]
[394481366,1763618510115,151.0,0.00042048,120]
[394481367,1763618510174,154.919325,0.00042048,120]
[394481368,1763618510220,163.193634,0.00042048,120]
[394481369,1763618510273,152.327719,0.00042048,120]
[394481370,1763618510351,156.586048,0.00042048,120]
[394481372,1763618510463,151.0,0.00042048,120]
[394481374,1763618510694,154.919325,0.00042048,120]
[394481375,1763618510746,151.369976,0.00042048,120]
[394481376,1763618510794,163.193634,0.00042048,120]
[394481378,1763618510845,155.668204,0.00042048,120]
[394481379,1763618510892,152.327719,0.00042048,120]
[394481380,1763618511053,406.27990134,0.00042048,120]
[394481382,1763618511100,569.35098307,0.00042048,120]
[394481383,1763618511158,151.369976,0.00042048,120]
[394481384,1763618511207,152.327719,0.00042048,120]
[394481385,1763618511259,154.919325,0.00042048,120]
[394481387,1763618511373,163.193634,0.00042048,120]
[394481389,1763618511535,152.327719,0.00042048,120]
[394481390,1763618511582,151.369976,0.00042048,120]
[394481391,1763618511633,154.919325,0.00042048,120]
[394481392,1763618511698,163.193634,0.00042048,120]
[394481393,1763618511744,440.32810139,0.00042048,120]
[394481395,1763618511795,400.0,0.00042048,120]
[394481396,1763618511869,401.08224984,0.00042048,120]
[394481397,1763618511918,152.327719,0.00042048,120]
[394481398,1763618511966,151.369976,0.00042048,120]
[394481400,1763618512031,163.193634,0.00042048,120]
[394481401,1763618512111,154.919325,0.00042048,120]
[394481403,1763618512420,151.369976,0.00042048,120]
[394481404,1763618512467,163.193634,0.00042048,120]
[394481406,1763618512517,154.919325,0.00042048,120]
[394481407,1763618512563,152.327719,0.00042048,120]
[394481408,1763618512752,428.2499543,0.00042048,120]
[394481410,1763618512857,152.327719,0.00042048,120]
[394481411,1763618512925,154.919325,0.00042048,120]
[394481412,1763618512977,228.48390822,0.00042048,30]
[394481414,1763618513227,152.327719,0.00042048,120]
[394481416,1763618513280,151.369976,0.00042048,120]
[394481417,1763618513329,163.193634,0.00042048,120]
[394481418,1763618513383,154.919325,0.00042048,120]
[394481420,1763618513626,192.89049078,0.00042048,120]
[394481421,1763618513730,163.193634,0.00042048,120]
[394481423,1763618513789,372.97638939,0.00042048,120]
[394481424,1763618513841,152.327719,0.00042048,120]
[394481425,1763618514059,154.919325,0.00042048,120]
[394481426,1763618514116,151.369976,0.00042048,120]
[394481427,1763618514169,170.69037987,0.00042048,120]
[394481429,1763618514274,163.193634,0.00042048,120]
[394481430,1763618514324,152.327719,0.00042048,120]
[394481431,1763618514371,154.919325,0.00042048,120]
[394481432,1763618514534,151.0,0.00042048,120]
[394481434,1763618514583,151.369976,0.00042048,120]
[394481435,1763618514631,311.21482236,0.00042048,120]
[394481436,1763618514682,154.919325,0.00042048,120]
[394481437,1763618514732,152.327719,0.00042048,120]
[394481438,1763618514839,151.0,0.00042048,120]
[394481440,1763618515029,151.369976,0.00042048,120]
[394481441,1763618515087,152.327719,0.00042048,120]
[394481443,1763618515137,154.919325,0.00042048,120]
[394481444,1763618515183,151.0,0.00042048,120]
[394481445,1763618515245,249.87623157,0.00042048,120]
[394481447,1763618515397,151.369976,0.00042048,120]
[394481448,1763618515479,152.327719,0.00042048,120]
[394481449,1763618515531,154.919325,0.00042048,120]
[394481451,1763618515643,151.0,0.00042048,120]
[394481452,1763618515694,400.0,0.00042048,120]
[394481453,1763618515767,151.369976,0.00042048,120]
[394481454,1763618515844,152.327719,0.00042048,120]
[394481456,1763618515892,154.919325,0.00042048,120]
[394481457,1763618515959,151.0,0.00042048,120]
[394481459,1763618516078,151.369976,0.00042048,120]
[394481460,1763618516132,254.72350932,0.00042048,120]
[394481461,1763618516224,152.327719,0.00042048,120]
[394481462,1763618516278,154.919325,0.00042048,120]
[394481463,1763618516329,151.0,0.00042048,120]
[394481465,1763618516391,151.369976,0.00042048,120]
[394481466,1763618516436,349.62774103,0.00042048,120]
[394481468,1763618516611,154.919325,0.00042048,120]
[394481469,1763618516658,152.327719,0.00042048,120]
[394481470,1763618516703,151.0,0.00042048,120]
[394481471,1763618516754,151.369976,0.00042048,120]
[394481472,1763618516951,151.0,0.00042048,120]
[394481473,1763618517000,154.919325,0.00042048,120]
[394481474,1763618517075,152.327719,0.00042048,120]
[394481476,1763618517285,151.0,0.00042048,120]
[394481477,1763618517336,154.919325,0.00042048,120]
[394481478,1763618517397,152.327719,0.00042048,120]
[394481480,1763618517450,270.68652725,0.00042048,120]
[394481481,1763618517581,151.0,0.00042048,120]
[394481482,1763618517629,154.919325,0.00042048,120]
[394481484,1763618517750,152.327719,0.00042048,120]
[394481485,1763618517798,151.0,0.00042048,120]
[394481486,1763618517892,151.0,0.00042048,120]
[394481488,1763618517943,400.0,0.00042048,120]
[394481489,1763618517991,154.919325,0.00042048,120]
[394481490,1763618518046,254.580278,0.00042048,120]
[394481491,1763618518095,152.327719,0.00042048,120]
[394481493,1763618518187,180.632453,0.00042048,120]
[394481494,1763618518247,401.49209434,0.00042048,120]
[394481495,1763618518313,154.919325,0.00042048,120]
[394481496,1763618518417,152.327719,0.00042048,120]
[394481498,1763618518648,154.919325,0.00042048,120]
[394481500,1763618518728,152.327719,0.00042048,120]
[394481502,1763618519027,154.919325,0.00042048,120]
[394481503,1763618519079,152.327719,0.00042048,120]
[394481505,1763618519402,152.327719,0.00042048,120]
[394481506,1763618519454,423.83431171,0.00042048,120]
[394481507,1763618519504,154.919325,0.00042048,120]
[394481508,1763618519558,407.56265523,0.00042048,120]
[394481510,1763618519774,152.327719,0.00042048,120]
[394481511,1763618519825,154.919325,0.00042048,120]
[394481512,1763618519877,369.35,0.00042048,120]
[394481513,1763618520147,152.327719,0.00042048,120]
[394481514,1763618520493,152.327719,0.00042048,120]
[394481515,1763618520818,152.327719,0.00042048,120]
[394481516,1763618521131,152.327719,0.00042048,120]
[394481517,1763618521490,152.327719,0.00042048,120]
[394481518,1763618521658,253.04667147,0.00042048,120]
[394481519,1763618521838,152.327719,0.00042048,120]
[394481520,1763618522476,152.327719,0.00042048,120]
[394481521,1763618522703,152.327719,0.00042048,120]
[394481522,1763618523025,152.327719,0.00042048,120]
[394481523,1763618523096,264.88634641,0.00042048,120]
[394481524,1763618523271,292.02676423,0.00042048,120]
[394481525,1763618523381,152.327719,0.00042048,120]
[394481526,1763618523445,409.21470359,0.00042048,120]
[394481527,1763618523951,311.69504792,0.00042048,120]
[394481528,1763618525558,453.77442389,0.00042048,120]
[394481532,1763618526433,151.0,0.00042048,120]
[394481534,1763618526655,257.18606555,0.00042048,120]
[394481536,1763618526811,378.30039643,0.00042048,120]
[394481538,1763618527065,151.0,0.00042048,120]
[394481540,1763618527380,151.0,0.00042048,120]
[394481542,1763618527652,165.24181,0.00042048,120]
[394481548,1763618529055,151.0,0.00042048,120]
[394481550,1763618529376,151.0,0.00042048,120]
[394481552,1763618529568,378.08008257,0.00042048,120]
[394481553,1763618529723,300.000064,0.00042048,120]
[394481554,1763618531547,436.10301741,0.00042048,120]
[394481555,1763618531647,326.23888133,0.00042048,120]
[394481556,1763618531875,151.0,0.00042048,120]
[394481557,1763618532079,218.39505931,0.00042048,120]
[394481558,1763618532190,153.310268,0.00042048,120]
[394481559,1763618533171,172.03864968,0.00042048,120]
[394481560,1763618534584,426.9451329,0.00042048,120]
[394481561,1763618535012,229.07627675,0.00042048,120]
[394481562,1763618536345,439.39137127,0.00042048,120]
[394481563,1763618538365,151.0,0.00042048,120]
[394481564,1763618538731,201.17678139,0.00042048,120]
[394481565,1763618538784,151.0,0.00042048,120]
[394481566,1763618539077,151.0,0.00042048,120]
[394481567,1763618539259,400.0,0.00042048,120]
[394481568,1763618539382,151.0,0.00042048,120]
[394481569,1763618539670,151.0,0.00042048,120]
[394481570,1763618539901,250.39501069,0.00042048,120]
[394481571,1763618539962,151.0,0.00042048,120]
[394481572,1763618540269,151.0,0.00042048,120]
[394481573,1763618540623,151.0,0.00042048,120]
[394481574,1763618540695,270.46266429,0.00042048,120]
[394481575,1763618540781,398.18844,0.00042048,120]
[394481576,1763618540931,151.0,0.00042048,120]
[394481577,1763618541139,398.18844,0.00042048,120]
[394481578,1763618541232,151.0,0.00042048,120]
[394481579,1763618541398,442.91264933,0.00042048,120]
[394481580,1763618541527,398.18844,0.00042048,120]
[394481581,1763618541577,151.0,0.00042048,120]
[394481582,1763618541838,398.18844,0.00042048,120]
[394481583,1763618541913,151.0,0.00042048,120]
[394481584,1763618542156,398.18844,0.00042048,120]
[394481585,1763618542256,151.0,0.00042048,120]
[394481586,1763618542560,398.18844,0.00042048,120]
[394481587,1763618542652,397.35906748,0.00042048,120]
[394481588,1763618542701,151.0,0.00042048,120]
[394481589,1763618542974,398.18844,0.00042048,120]
[394481590,1763618543056,151.0,0.00042048,120]
[394481591,1763618543238,151.0,0.00042048,120]
[394481592,1763618543325,398.18844,0.00042048,120]
[394481593,1763618543448,151.0,0.00042048,120]
[394481594,1763618543766,151.0,0.00042048,120]
[394481595,1763618543822,398.18844,0.00042048,120]
[394481596,1763618543878,151.0,0.00042048,120]
[394481597,1763618543980,151.0,0.00042048,120]
[394481598,1763618544034,398.18844,0.00042048,120]
[394481599,1763618544120,238.478684,0.00042048,120]
[394481600,1763618544181,151.0,0.00042048,120]
[394481601,1763618544248,398.18844,0.00042048,120]
[394481602,1763618544508,151.0,0.00042048,120]
[394481603,1763618544584,372.60248024,0.00042048,120]
[394481604,1763618544632,398.18844,0.00042048,120]
[394481605,1763618544826,151.0,0.00042048,120]
[394481606,1763618544882,398.18844,0.00042048,120]
[394481607,1763618544987,412.66780497,0.00042048,120]
[394481608,1763618545118,282.1831096,0.00042048,120]
[394481609,1763618545167,151.0,0.00042048,120]
[394481610,1763618545217,398.18844,0.00042048,120]
[394481611,1763618545488,151.0,0.00042048,120]
[394481612,1763618545544,398.18844,0.00042048,120]
[394481613,1763618545782,151.0,0.00042048,120]
[394481614,1763618545856,398.18844,0.00042048,120]
[394481615,1763618546244,398.18844,0.00042048,120]
[394481616,1763618546427,425.48226332,0.00042048,120]
[394481617,1763618546544,453.21898955,0.00042048,120]
[394481618,1763618546595,398.18844,0.00042048,120]
[394481619,1763618546847,398.18844,0.00042048,120]
[394481620,1763618547151,398.18844,0.00042048,120]
[394481621,1763618548485,232.43444369,0.00042048,120]
[394481622,1763618549284,151.0,0.00042048,120]
[394481623,1763618549649,500.0,0.00042048,120]
[394481624,1763618549702,151.0,0.00042048,120]
[394481625,1763618549885,217.97250635,0.00042048,120]
[394481626,1763618550007,238.93693087,0.00042048,120]
[394481627,1763618550062,151.0,0.00042048,120]
[394481628,1763618550341,151.0,0.00042048,120]
[394481629,1763618550516,322.17554898,0.00042048,120]
[394481630,1763618550580,384.07338842,0.00042048,120]
[394481631,1763618550790,159.442282,0.00042048,120]
[394481632,1763618551554,353.91075929,0.00042048,120]
[394481633,1763618551869,438.35650873,0.00042048,120]
[394481634,1763618552648,318.74526951,0.00042048,120]
[394481635,1763618552860,355.87498155,0.00042048,120]
[394481636,1763618552911,151.0,0.00042048,120]
[394481637,1763618553495,151.0,0.00042048,120]
[394481638,1763618553805,151.0,0.00042048,120]
[394481639,1763618554095,151.0,0.00042048,120]
[394481640,1763618554292,389.206113,0.00042048,120]
[394481641,1763618554388,151.0,0.00042048,120]
[394481642,1763618554584,389.206113,0.00042048,120]
[394481643,1763618554689,151.0,0.00042048,120]
[394481644,1763618555011,151.0,0.00042048,120]
[394481645,1763618555065,389.206113,0.00042048,120]
[394481646,1763618555129,500.0,0.00042048,120]
[394481647,1763618555306,151.0,0.00042048,120]
[394481648,1763618555359,229.56231457,0.00042048,120]
[394481649,1763618555444,389.206113,0.00042048,120]
[394481650,1763618555594,151.0,0.00042048,120]
[394481651,1763618555737,389.206113,0.00042048,120]
[394481652,1763618555914,296.23129088,0.00042048,120]